bitfinex/quotes_SOLUSD_20250626
["timestamp","ask_amount","ask_price","bid_price","bid_amount"]
[1750928040988,5.10495643,144.88,144.86,5.61586243]
[1750928044112,5.10495643,144.88,144.85,29.77878959]
[1750928044630,0.28432314,144.88,144.85,29.77878959]
[1750928047317,5.38927957,144.88,144.85,6.90369347]
[1750928047616,0.28432314,144.86,144.85,6.90369347]
[1750928047816,0.28432314,144.86,144.84,6.90395082]
[1750928049716,0.28432314,144.87,144.84,6.90395082]
[1750928050221,0.28432314,144.87,144.84,12.51981325]
[1750928055139,5.38927957,144.87,144.84,12.51981325]
[1750928055304,0.28432314,144.87,144.84,12.51981325]
[1750928055661,5.38927957,144.87,144.84,12.51981325]
[1750928055794,0.28432314,144.87,144.84,12.51981325]
[1750928056822,0.28432314,144.87,144.85,5.61586243]
[1750928057122,5.10495643,144.88,144.87,6.90274038]
[1750928057425,31.10495643,144.89,144.87,12.51860281]
[1750928057627,31.10495643,144.89,144.87,6.90274038]
[1750928057920,31.10495643,144.89,144.85,6.90335436]
[1750928058100,31.10495643,144.89,144.86,5.61586243]
[1750928059121,26.0,144.89,144.87,5.61586243]
[1750928060935,26.0,144.89,144.86,5.61586243]
[1750928062431,26.0,144.89,144.86,12.5188998]
[1750928063144,0.32432314,144.9,144.88,5.61586243]
[1750928063523,0.32432314,144.9,144.87,5.61586243]
[1750928064033,0.32432314,144.9,144.87,12.51815687]
[1750928066043,0.32432314,144.9,144.87,6.90229444]
[1750928066344,0.32432314,144.9,144.87,12.51815687]
[1750928071641,0.04,144.9,144.87,18.45815687]
[1750928071943,0.04,144.9,144.88,5.61586243]
[1750928073034,0.04,144.9,144.89,6.90178756]
[1750928075148,0.04,144.9,144.88,6.90226394]
[1750928081333,0.04,144.9,144.87,6.90250223]
[1750928082349,0.04,144.9,144.86,6.90321689]
[1750928083159,0.04,144.9,144.86,24.16125913]
[1750928083966,0.04,144.9,144.86,29.77321928]
[1750928084256,0.04,144.9,144.88,6.90226394]
[1750928087462,0.04,144.9,144.86,29.77321928]
[1750928087759,0.04,144.9,144.86,24.16125913]
[1750928096865,0.04,144.9,144.87,5.61196015]
[1750928099072,0.04,144.9,144.89,6.90178756]
[1750928100453,0.04,144.9,144.88,6.90201881]
[1750928101567,0.04,144.9,144.86,24.16125913]
[1750928101752,5.16175067,144.9,144.86,24.16125913]
[1750928102552,5.16175067,144.9,144.86,6.90321689]
[1750928112258,5.12175067,144.89,144.86,6.90321689]
[1750928123270,0.04,144.9,144.86,24.16125913]
[1750928125380,0.04,144.9,144.87,18.64964886]
[1750928125564,5.17166331,144.9,144.88,28.0]
[1750928125759,0.04,144.9,144.88,28.0]
[1750928126176,0.04,144.9,144.88,31.59122782]
[1750928126478,0.04,144.9,144.88,28.0]
[1750928127077,0.04,144.9,144.89,6.90178756]
[1750928130192,0.04,144.9,144.89,25.55143642]
[1750928136493,0.04,144.9,144.89,6.90178756]
[1750928137695,0.04,144.9,144.88,34.9020366]
[1750928138281,6.80628071,144.9,144.88,6.9020366]
[1750928139799,0.28432314,144.89,144.81,17.2640011]
[1750928139995,0.28432314,144.87,144.82,28.0]
[1750928140187,5.13238071,144.88,144.83,18.64964886]
[1750928140188,0.28432314,144.88,144.83,18.64964886]
[1750928140582,0.28432314,144.88,144.82,18.64964886]
[1750928140781,5.41670385,144.88,144.83,28.0]
[1750928141093,0.28432314,144.88,144.83,28.0]
[1750928141295,5.41670385,144.88,144.83,28.0]
[1750928141485,0.28432314,144.88,144.83,28.0]
[1750928141697,5.41670385,144.88,144.84,6.90417011]
[1750928141884,0.28432314,144.88,144.84,6.90417011]
[1750928142579,5.41670385,144.88,144.84,6.90417011]
[1750928142783,0.28432314,144.88,144.84,6.90417011]
[1750928142984,5.41670385,144.88,144.84,6.90417011]
[1750928143297,0.28432314,144.88,144.84,6.90417011]
[1750928143495,26.0,144.84,144.73,10.0]
[1750928143694,26.0,144.84,144.77,6.90750846]
[1750928143695,0.28432314,144.83,144.77,6.90750846]
[1750928143890,0.28432314,144.83,144.77,34.90750846]
[1750928144590,0.28432314,144.83,144.77,52.17627961]
[1750928144998,0.28432314,144.83,144.78,28.0]
[1750928147102,0.28432314,144.83,144.79,6.90655432]
[1750928153597,0.28432314,144.81,144.79,6.90655432]
[1750928153786,0.28432314,144.81,144.76,33.96]
[1750928155007,0.28432314,144.81,144.77,6.90710295]
[1750928155200,0.28432314,144.81,144.76,34.92798563]
[1750928156005,0.28432314,144.81,144.76,6.90798563]
[1750928156195,0.28432314,144.81,144.76,34.92798563]
[1750928156631,0.28432314,144.81,144.76,6.90798563]
[1750928156913,0.28432314,144.81,144.76,34.92798563]
[1750928157082,0.28432314,144.81,144.76,52.1979497]
[1750928158610,0.28432314,144.81,144.77,5.6149382]
[1750928158784,1.5335,144.82,144.77,5.6149382]
[1750928159100,1.5335,144.82,144.78,6.90703135]
[1750928160011,1.5335,144.82,144.78,24.17460974]
[1750928164308,26.0,144.83,144.78,24.17460974]
[1750928164622,0.28432314,144.82,144.78,24.17460974]
[1750928170795,0.28432314,144.82,144.78,27.76996744]
[1750928172702,0.28432314,144.82,144.78,24.17460974]
[1750928175019,26.0,144.83,144.78,24.17460974]
[1750928175209,26.0,144.83,144.78,27.76996744]
[1750928175401,26.0,144.83,144.79,28.02]
[1750928177204,26.0,144.83,144.8,6.90607734]
[1750928179418,0.28432314,144.85,144.8,24.17127071]
[1750928179599,0.28432314,144.85,144.8,27.76662841]
[1750928180814,0.28432314,144.85,144.8,24.17127071]
[1750928185218,0.28432314,144.85,144.8,27.76662841]
[1750928185823,0.28432314,144.85,144.8,33.70662841]
[1750928186031,0.28432314,144.85,144.81,3.5953577]
[1750928186216,1.6049,144.86,144.82,3.5953577]
[1750928186531,1.6049,144.86,144.82,28.0]
[1750928186697,1.6049,144.86,144.82,31.5953577]
[1750928186902,1.6049,144.86,144.83,24.16626388]
[1750928187100,26.0,144.87,144.83,27.76162158]
[1750928188230,26.0,144.87,144.83,24.16626388]
[1750928207252,26.0,144.87,144.83,6.90464682]
[1750928207253,0.28432314,144.86,144.83,6.90464682]
[1750928207425,0.28432314,144.86,144.81,52.16930777]
[1750928209444,0.28432314,144.86,144.81,24.16930777]
[1750928209644,0.28432314,144.86,144.81,6.90560044]
[1750928209955,1.6066,144.85,144.81,6.90560044]
[1750928213940,0.28432314,144.84,144.81,6.90560044]
[1750928220445,1.6066,144.85,144.81,24.16960154]
[1750928220786,31.11473105,144.87,144.82,46.64964886]
[1750928220958,26.0,144.87,144.82,46.64964886]
[1750928222262,26.0,144.87,144.83,24.16626388]
[1750928224078,31.11473105,144.87,144.83,24.16626388]
[1750928224487,6.31212314,144.86,144.83,6.90464682]
[1750928224651,11.42685419,144.86,144.83,6.90464682]
[1750928225155,0.28432314,144.86,144.83,6.90464682]
[1750928226375,0.28432314,144.86,144.82,17.26184066]
[1750928227248,5.39905419,144.86,144.82,17.26184066]
[1750928227454,0.28432314,144.84,144.81,6.90560044]
[1750928227945,5.39905419,144.84,144.81,6.90560044]
[1750928228379,0.28432314,144.84,144.81,6.90560044]
[1750928228561,0.28432314,144.84,144.8,6.90607734]
[1750928237385,0.28432314,144.84,144.8,24.17127071]
[1750928237593,1.5814,144.85,144.8,24.17127071]
[1750928238877,0.28432314,144.86,144.81,18.64964886]
[1750928239267,0.28432314,144.86,144.81,24.26637894]
[1750928239468,0.28432314,144.86,144.82,24.1679326]
[1750928239980,0.28432314,144.86,144.82,52.1679326]
[1750928241783,0.28432314,144.87,144.82,34.9051236]
[1750928241982,5.39905419,144.87,144.82,34.9051236]
[1750928244188,5.11473105,144.86,144.82,34.9051236]
[1750928245688,5.11473105,144.86,144.82,6.9051236]
[1750928250696,5.39905419,144.87,144.82,6.9051236]
[1750928250987,5.39905419,144.87,144.82,24.1679326]
[1750928252096,5.11473105,144.86,144.82,24.1679326]
[1750928262802,0.28432314,144.85,144.82,24.1679326]
[1750928264997,0.28432314,144.86,144.82,17.262809]
[1750928265196,5.39905419,144.86,144.82,17.262809]
[1750928265484,0.28432314,144.86,144.81,6.90560044]
[1750928265686,5.39905419,144.86,144.81,6.90560044]
[1750928265899,0.28432314,144.86,144.81,6.90560044]
[1750928266077,0.28432314,144.84,144.81,6.90560044]
[1750928267108,0.28432314,144.84,144.8,24.17098607]
[1750928272509,5.39905419,144.84,144.8,6.90607734]
[1750928276410,0.28432314,144.82,144.8,6.90607734]
[1750928278695,0.28432314,144.83,144.8,6.90607734]
[1750928278907,5.39905419,144.83,144.8,6.90607734]
[1750928279203,0.28432314,144.83,144.8,6.90607734]
[1750928279425,5.39905419,144.83,144.8,6.90607734]
[1750928279718,0.28432314,144.83,144.8,6.90607734]
[1750928280013,5.39905419,144.83,144.8,6.90607734]
[1750928280215,0.28432314,144.83,144.8,6.90607734]
[1750928285122,0.28432314,144.84,144.8,6.90607734]
[1750928285508,5.39905419,144.84,144.8,6.90607734]
[1750928292437,0.28432314,144.84,144.8,6.90607734]
[1750928292931,5.39905419,144.84,144.8,6.90607734]
[1750928295534,5.11473105,144.83,144.77,27.6947395]
[1750928295735,0.28432314,144.81,144.77,27.6947395]
[1750928296616,0.28432314,144.81,144.76,6.90798563]
[1750928301659,0.28432314,144.81,144.76,24.1779497]
[1750928302031,0.28432314,144.83,144.76,24.1779497]
[1750928303154,0.28432314,144.83,144.76,27.77136867]
[1750928306436,0.28432314,144.83,144.76,55.77136867]
[1750928306636,0.28432314,144.83,144.78,24.17460974]
[1750928308426,5.11473105,144.84,144.79,18.64964886]
[1750928308632,0.28432314,144.84,144.8,6.90607734]
[1750928309053,27.5099,144.85,144.8,24.17127071]
[1750928309233,5.11473105,144.86,144.8,24.17127071]
[1750928309431,0.28432314,144.85,144.8,52.17127071]
[1750928313334,5.11473105,144.86,144.81,22.24306783]
[1750928313638,0.28432314,144.87,144.82,3.59341897]
[1750928315558,0.28432314,144.87,144.83,6.90464682]
[1750928318271,0.32432314,144.88,144.83,24.16626388]
[1750928325563,0.32432314,144.88,144.83,27.75968285]
[1750928325899,0.04,144.88,144.87,3.59341897]
[1750928326248,0.04,144.88,144.87,10.49615935]
[1750928329865,0.04,144.88,144.87,6.90274038]
[1750928331855,0.04,144.88,144.87,10.49615935]
[1750928332454,0.04,144.88,144.87,6.90274038]
[1750928347867,0.04,144.88,144.86,12.82298568]
[1750928349993,0.04,144.88,144.86,16.41640465]
[1750928351187,0.04,144.88,144.86,12.82298568]
[1750928353101,0.04,144.88,144.86,16.41640465]
[1750928354471,0.04,144.88,144.86,12.82298568]
[1750928359589,0.04,144.88,144.87,3.59341897]
[1750928360496,0.04,144.88,144.87,38.45615935]
[1750928363416,0.04,144.88,144.87,57.10580821]
[1750928363600,0.04,144.88,144.87,145.80580821]
[1750928374711,0.04,144.88,144.87,142.21238924]
[1750928374913,0.04,144.88,144.87,145.80580821]
[1750928378518,0.04,144.88,144.87,57.10580821]
[1750928385220,0.04,144.88,144.87,53.51238924]
[1750928385412,0.04,144.88,144.87,57.10580821]
[1750928386315,0.04,144.88,144.87,6.90274038]
[1750928386518,0.28432314,144.87,144.84,6.90417011]
[1750928390806,0.28432314,144.87,144.83,6.90464682]
[1750928394733,0.28432314,144.87,144.83,24.16626388]
[1750928395034,0.28432314,144.87,144.83,27.75968285]
[1750928395330,1.6688,144.88,144.84,27.96]
[1750928396836,1.6688,144.88,144.85,6.90369347]
[1750928397526,0.04,144.88,144.85,24.16292716]
[1750928398040,0.04,144.88,144.86,3.59341897]
[1750928398332,0.04,144.88,144.85,24.16292716]
[1750928398512,0.04,144.88,144.86,3.59341897]
[1750928398703,0.04,144.88,144.87,27.96]
[1750928399032,0.04,144.88,144.87,34.86274038]
[1750928400533,0.04,144.88,144.87,40.47281613]
[1750928401036,0.04,144.88,144.87,153.74246499]
[1750928405956,0.04,144.88,144.87,114.25238924]
[1750928406239,0.04,144.88,144.87,153.74246499]
[1750928407932,0.04,144.88,144.87,148.13238924]
[1750928408142,0.04,144.88,144.87,153.74246499]
[1750928411243,0.04,144.88,144.87,65.04246499]
[1750928412110,0.04,144.88,144.87,59.43238924]
[1750928412319,0.04,144.88,144.87,65.04246499]
[1750928413046,0.04,144.88,144.87,59.43238924]
[1750928413349,0.04,144.88,144.87,65.04246499]
[1750928413854,0.04,144.88,144.87,12.82274038]
[1750928414025,0.04,144.88,144.87,40.78274038]
[1750928415544,0.04,144.88,144.87,12.82274038]
[1750928415735,0.04,144.88,144.87,40.78274038]
[1750928417856,0.04,144.88,144.87,46.39281613]
[1750928418548,0.04,144.88,144.87,40.78274038]
[1750928434365,0.04,144.88,144.87,34.86274038]
[1750928437265,0.04,144.88,144.87,6.90274038]
[1750928437466,0.32432314,144.88,144.85,6.90369347]
[1750928437764,0.04,144.88,144.85,6.90369347]
[1750928438488,0.28432314,144.86,144.8,27.6442408]
[1750928438667,0.28432314,144.86,144.82,17.262666]
[1750928438872,0.04,144.88,144.85,3.59038878]
[1750928439043,0.04,144.88,144.86,3.59038878]
[1750928439746,0.04,144.88,144.87,34.86274038]
[1750928441142,0.04,144.88,144.87,38.45312916]
[1750928441465,0.04,144.88,144.87,34.86274038]
[1750928447988,0.04,144.88,144.86,34.86321689]
[1750928448490,0.04,144.88,144.86,40.47355409]
[1750928451177,0.04,144.88,144.87,5.6103372]
[1750928452501,0.04,144.88,144.87,112.95998606]
[1750928452686,0.04,144.88,144.87,141.52920399]
[1750928452884,0.04,144.88,144.87,140.83892996]
[1750928455206,0.04,144.9,144.88,18.64964886]
[1750928455516,0.04,144.92,144.91,50.25998606]
[1750928455674,8.5388067,144.97,144.92,18.64964886]
[1750928456008,8.5388067,144.97,144.92,24.25998606]
[1750928457284,8.5388067,144.97,144.92,31.16034487]
[1750928458515,8.5388067,144.97,144.92,25.55000767]
[1750928458682,8.5388067,144.97,144.92,31.16034487]
[1750928459413,8.5388067,144.97,144.92,31.85038075]
[1750928459591,8.5388067,144.97,144.92,33.35138075]
[1750928459797,8.5388067,144.97,144.93,52.21998606]
[1750928460778,8.5388067,144.97,144.93,53.50953156]
[1750928460984,8.5388067,144.97,144.93,59.11986876]
[1750928461482,8.5388067,144.97,144.93,147.81986876]
[1750928473715,8.5388067,144.97,144.93,173.81986876]
[1750928474829,8.5388067,144.97,144.94,114.20905551]
[1750928475048,8.5388067,144.97,144.94,119.81939271]
[1750928477931,8.5388067,144.97,144.94,120.50933337]
[1750928478842,8.5388067,144.97,144.94,114.89899617]
[1750928479143,8.5388067,144.97,144.94,120.50933337]
[1750928480227,8.5388067,144.97,144.94,119.81939271]
[1750928481830,8.5388067,144.97,144.94,114.20905551]
[1750928482030,8.5388067,144.97,144.94,119.81939271]
[1750928483852,8.5388067,144.97,144.94,114.20905551]
[1750928484152,8.5388067,144.97,144.94,119.81939271]
[1750928487457,8.5388067,144.97,144.94,120.50933337]
[1750928487863,8.5388067,144.97,144.94,119.81939271]
[1750928489739,8.5388067,144.97,144.96,133.26964886]
[1750928489951,0.04,144.99,144.96,133.26964886]
[1750928489952,0.04,144.99,144.98,44.64964886]
[1750928490171,0.04,144.99,144.98,84.15998606]
[1750928490333,0.04,144.99,144.98,172.77998606]
[1750928491051,0.04,144.99,144.98,146.77998606]
[1750928492161,0.04,144.99,144.98,153.67748916]
[1750928492862,0.04,144.99,144.98,179.67748916]
[1750928493439,0.04,145.0,144.99,18.64964886]
[1750928493658,0.04,145.0,144.99,52.23998606]
[1750928494469,0.04,145.0,144.99,59.13701344]
[1750928496450,0.04,145.02,145.0,88.62]
[1750928496656,0.04,145.03,145.02,44.64964886]
[1750928496866,0.04,145.03,145.02,50.25998606]
[1750928498763,0.04,145.03,145.02,57.15558666]
[1750928499774,0.04,145.03,145.02,145.77558666]
[1750928501481,0.04,145.03,145.02,140.16524946]
[1750928501671,0.04,145.03,145.02,145.77558666]
[1750928501865,0.04,145.03,145.02,119.77558666]
[1750928502579,0.04,145.03,145.02,114.16524946]
[1750928502955,0.04,145.03,145.02,119.77558666]
[1750928507787,0.04,145.03,145.02,95.5156006]
[1750928508079,0.04,145.03,145.02,123.5156006]
[1750928508281,0.04,145.03,145.02,95.5156006]
[1750928508683,0.04,145.03,145.02,6.8956006]
[1750928511763,0.32432314,145.03,145.01,6.89591579]
[1750928511963,0.32432314,145.03,144.99,116.62]
[1750928511964,1.5583,145.02,144.99,116.62]
[1750928512262,1.5583,145.02,144.99,123.51680745]
[1750928517482,1.5583,145.02,144.99,95.51680745]
[1750928517680,1.5583,145.02,144.99,34.89680745]
[1750928519896,1.5583,145.02,144.99,6.89680745]
[1750928520072,1.5583,145.02,144.99,34.87680745]
[1750928526400,0.28432314,145.01,144.98,6.8975031]
[1750928526794,0.28432314,145.01,144.98,34.8575031]
[1750928528800,1.5583,145.02,144.98,52.10126085]
[1750928529202,1.5583,145.02,144.98,57.71159805]
[1750928529387,0.18216157,145.03,144.99,5.6103372]
[1750928529586,0.18216157,145.03,145.0,27.96]
[1750928529792,0.32432314,145.03,145.0,27.96]
[1750928530605,0.32432314,145.03,145.01,6.89607613]
[1750928531608,0.32432314,145.03,144.98,111.47409495]
[1750928531609,0.32432314,145.03,144.99,34.85702738]
[1750928531901,0.32432314,145.03,144.99,6.89702738]
[1750928534510,0.28432314,145.01,144.99,6.89702738]
[1750928543820,0.28432314,145.01,144.98,34.87730335]
[1750928544196,0.28432314,145.01,144.98,6.89730335]
[1750928544422,0.28432314,145.01,144.97,6.89782007]
[1750928544816,0.28432314,145.01,144.96,95.61826363]
[1750928545015,0.14216157,144.99,144.96,95.61826363]
[1750928545817,0.28432314,144.97,144.96,0.02]
[1750928546130,0.14216157,144.97,144.96,0.02]
[1750928546891,0.28432314,144.97,144.96,6.91845474]
[1750928547702,0.28432314,144.97,144.96,0.02]
[1750928548927,0.14216157,144.97,144.96,0.02]
[1750928549223,0.28432314,144.97,144.96,0.02]
[1750928552014,0.28432314,145.0,144.96,0.02]
[1750928552216,26.0,145.0,144.96,88.72]
[1750928552425,1.5936,145.02,144.96,88.72]
[1750928552734,0.28432314,145.01,144.97,27.94]
[1750928553130,27.5936,145.02,144.98,6.8975031]
[1750928553308,0.28432314,145.01,144.98,6.8975031]
[1750928555028,0.28432314,145.01,144.96,88.72]
[1750928555029,26.0,145.0,144.96,88.72]
[1750928555232,5.37398958,144.99,144.96,0.02]
[1750928555417,5.37398958,144.99,144.96,6.91843651]
[1750928556828,26.0,144.97,144.96,0.02]
[1750928557029,26.28432314,144.97,144.96,0.02]
[1750928558329,31.37398958,144.97,144.96,0.02]
[1750928558514,26.28432314,144.97,144.96,0.02]
[1750928575053,5.09214999,145.01,144.96,0.02]
[1750928575234,26.0,144.98,144.96,0.02]
[1750928576949,0.28432314,145.0,144.96,0.02]
[1750928577150,26.28432314,145.0,144.96,0.02]
[1750928578556,0.14216157,145.0,144.96,0.02]
[1750928582556,0.14216157,145.0,144.96,88.72]
[1750928583759,0.14216157,145.0,144.97,6.89797889]
[1750928584459,0.14216157,145.0,144.96,88.72]
[1750928584653,0.14216157,144.99,144.96,0.02]
[1750928584853,0.14216157,144.99,144.96,6.91845029]
[1750928585066,0.14216157,144.98,144.96,6.91845029]
[1750928585367,0.14216157,144.98,144.96,0.02]
[1750928587369,0.28432314,144.99,144.96,0.02]
[1750928587665,5.37647313,144.99,144.96,0.02]
[1750928587850,0.28432314,144.99,144.96,0.02]
[1750928588049,5.37647313,144.99,144.96,0.02]
[1750928588271,0.28432314,144.99,144.96,0.02]
[1750928588569,5.09214999,144.98,144.96,0.02]
[1750928589384,0.28432314,144.99,144.96,0.02]
[1750928589674,5.37647313,144.99,144.96,0.02]
[1750928589849,0.28432314,144.99,144.96,0.02]
[1750928590050,5.37647313,144.99,144.96,0.02]
[1750928590347,0.28432314,144.99,144.96,0.02]
[1750928590548,5.37647313,144.99,144.96,0.02]
[1750928590747,5.09214999,145.0,144.96,0.02]
[1750928590963,5.09214999,144.99,144.96,0.02]
[1750928591155,0.28432314,144.99,144.96,0.02]
[1750928591354,0.14216157,144.99,144.96,0.02]
[1750928591865,0.28432314,144.99,144.96,0.02]
[1750928592572,0.28432314,144.99,144.96,88.72]
[1750928592951,0.14216157,144.99,144.96,88.72]
[1750928593151,0.28432314,144.99,144.96,88.72]
[1750928594850,0.28432314,144.99,144.97,6.89797889]
[1750928599357,5.37647313,144.99,144.97,6.89797889]
[1750928599571,0.28432314,144.99,144.97,6.89797889]
[1750928599757,5.37647313,144.99,144.97,6.89797889]
[1750928599958,0.28432314,144.99,144.97,6.89797889]
[1750928600159,5.37647313,144.99,144.97,6.89797889]
[1750928600377,0.28432314,144.99,144.97,6.89797889]
[1750928603281,0.28432314,144.99,144.97,95.59797889]
[1750928603779,0.28432314,144.99,144.97,88.7]
[1750928604876,5.37647313,144.99,144.97,88.7]
[1750928605068,5.09214999,144.98,144.97,88.7]
[1750928605269,31.09214999,144.98,144.97,88.7]
[1750928609187,31.09214999,144.98,144.96,0.02]
[1750928609392,0.28432314,144.97,144.96,0.02]
[1750928610961,5.37647313,144.97,144.96,0.02]
[1750928613663,0.28432314,144.97,144.96,0.02]
[1750928618589,5.37647313,144.97,144.96,0.02]
[1750928624104,5.09214999,144.99,144.97,6.89797889]
[1750928627002,5.09214999,144.99,144.97,95.59797889]
[1750928633732,31.09214999,145.01,144.97,116.42894823]
[1750928634100,31.09214999,145.01,144.97,112.84292612]
[1750928636716,5.37647313,145.0,144.97,88.7]
[1750928638801,5.37647313,145.0,144.96,95.6182343]
[1750928639010,0.28432314,144.98,144.96,95.6182343]
[1750928640522,0.28432314,144.98,144.96,88.72]
[1750928640819,5.09214999,144.97,144.96,88.72]
[1750928644326,26.0,144.97,144.96,88.72]
[1750928644707,26.0,144.97,144.96,0.02]
[1750928649426,26.28432314,144.97,144.96,0.02]
[1750928660924,0.28432314,144.98,144.96,0.02]
[1750928661141,0.28432314,144.99,144.96,0.02]
[1750928662533,0.28432314,144.99,144.96,88.72]
[1750928663047,0.28432314,144.99,144.97,6.89797889]
[1750928667728,26.0,145.01,144.97,10.48522384]
[1750928667928,31.09214999,145.01,144.97,99.18522384]
[1750928668161,5.09214999,145.01,144.98,3.58724495]
[1750928668459,0.04,145.03,145.0,3.58724495]
[1750928668665,0.04,145.03,145.02,3.58724495]
[1750928669660,0.04,145.03,145.02,10.48284555]
[1750928670226,0.04,145.03,145.02,12.49331898]
[1750928673867,0.04,145.03,145.02,6.8956006]
[1750928674223,0.04,145.03,145.02,95.5956006]
[1750928679051,0.04,145.03,145.02,123.5356006]
[1750928679577,0.04,145.03,145.02,88.7]
[1750928681789,0.04,145.03,145.0,88.7]
[1750928686882,0.04,145.03,145.0,95.59646722]
[1750928693872,0.04,145.03,145.0,88.7]
[1750928703898,0.04,145.03,145.0,95.59644795]
[1750928706663,0.04,145.03,145.0,123.53644795]
[1750928712636,0.04,145.03,145.0,127.12097031]
[1750928714003,0.04,145.03,145.0,144.36234962]
[1750928714426,0.04,145.03,145.0,123.53644795]
[1750928723215,0.04,145.03,145.0,127.12097031]
[1750928725032,0.04,145.03,145.0,144.36234962]
[1750928725206,0.04,145.03,145.02,6.8956006]
[1750928725402,0.04,145.03,145.02,34.8356006]
[1750928727530,0.04,145.03,145.02,53.48524946]
[1750928727709,0.04,145.03,145.02,57.06977182]
[1750928728426,0.04,145.03,145.02,53.48524946]
[1750928730614,0.04,145.03,145.02,142.18524946]
[1750928735037,0.04,145.03,145.02,145.76977182]
[1750928736432,0.04,145.04,145.03,107.30964886]
[1750928737814,0.04,145.04,145.03,114.204774]
[1750928740932,0.04,145.04,145.03,115.004774]
[1750928741610,0.04,145.08,145.07,18.64964886]
[1750928741827,0.04,145.08,145.07,50.15417122]
[1750928742216,0.04,145.08,145.07,57.04739518]
[1750928743033,0.04,145.08,145.07,34.81322396]
[1750928745230,0.04,145.08,145.07,123.39322396]
[1750928745737,0.04,145.08,145.07,128.98750064]
[1750928747139,0.04,145.08,145.07,123.39322396]
[1750928757726,0.04,145.08,145.07,142.04287282]
[1750928757961,0.04,145.09,145.08,107.18964886]
[1750928758137,0.04,145.09,145.08,112.78392554]
[1750928759138,0.04,145.09,145.08,119.67667436]
[1750928762764,0.04,145.09,145.08,120.47667436]
[1750928763064,0.04,145.12,145.11,6.89132382]
[1750928763264,0.04,145.12,145.11,95.39132382]
[1750928768667,0.04,145.12,145.11,88.5]
[1750928768840,0.04,145.12,145.11,95.39132382]
[1750928775284,0.04,145.14,145.12,107.10964886]
[1750928775446,0.04,145.14,145.13,31.47924018]
[1750928776656,0.04,145.14,145.13,50.12888904]
[1750928776858,0.04,145.14,145.13,34.79037414]
[1750928780900,0.04,145.14,145.13,123.25037414]
[1750928787281,0.32432314,145.14,145.13,88.46]
[1750928788068,0.32432314,145.14,145.13,95.35037414]
[1750928788396,0.04,145.14,145.13,95.35037414]
[1750928811406,0.04,145.14,145.13,88.46]
[1750928813076,0.04,145.14,145.13,95.35037414]
[1750928813781,0.04,145.14,145.13,123.25037414]
[1750928818994,0.04,145.14,145.13,147.48990253]
[1750928819393,0.04,145.14,145.13,114.000023]
[1750928819712,0.28432314,145.13,145.06,6.9135436]
[1750928819915,5.14225043,145.12,145.06,6.9135436]
[1750928820118,0.28432314,145.1,145.06,34.9935436]
[1750928820310,0.28432314,145.1,145.06,28.1]
[1750928820615,26.28432314,145.1,145.06,0.02]
[1750928820796,4.82525677,145.07,145.06,0.02]
[1750928821113,0.28432314,145.03,145.02,0.02]
[1750928823129,5.13845549,145.03,145.02,0.02]
[1750928823300,0.28432314,145.03,145.02,0.02]
[1750928823618,1.82882314,145.03,145.02,0.02]
[1750928825203,6.65541074,145.03,145.02,0.02]
[1750928825403,1.82882314,145.03,145.02,0.02]
[1750928825718,6.65541074,145.03,145.02,0.02]
[1750928825902,1.82882314,145.03,145.02,0.02]
[1750928827220,6.96181839,145.03,145.02,0.02]
[1750928827404,1.82882314,145.03,145.02,0.02]
[1750928829824,26.0,145.0,144.98,0.02]
[1750928830009,26.28432314,144.99,144.98,0.02]
[1750928830201,0.28432314,144.99,144.98,0.02]
[1750928832618,7.718,145.03,144.98,0.02]
[1750928832819,26.28432314,145.02,144.98,0.02]
[1750928833029,26.14216157,145.02,144.98,0.02]
[1750928833235,0.14216157,145.01,144.98,0.02]
[1750928835032,0.28432314,144.99,144.98,0.02]
[1750928838546,7.718,145.03,144.98,88.48]
[1750928838744,26.28432314,145.02,144.98,88.48]
[1750928838949,26.14216157,145.02,144.98,88.48]
[1750928839131,0.14216157,145.01,144.98,88.48]
[1750928840046,0.14216157,145.0,144.98,88.48]
[1750928840455,0.14216157,145.0,144.98,95.37730889]